[Event "*** Titled Tuesday Blitz"]
[Site "Chess.com"]
[Date "2020.04.07"]
[Round "3"]
[White "davigator"]
[Black "annacramling"]
[Result "1-0"]
[WhiteElo "2329"]
[BlackElo "1958"]
[TimeControl "180+1"]
[EndTime "13:28:55 PDT"]
[Termination "davigator won on time"]

1. e4 {[%clk 0:03:00.9]} 1... c5 {[%clk 0:02:58.9]} 2. Nf3 {[%clk 0:03:00.1]}
2... a6 {[%clk 0:02:58.2]} 3. d4 {[%clk 0:02:59.4]} 3... cxd4 {[%clk 0:02:57.2]}
4. Nxd4 {[%clk 0:03:00.3]} 4... Nf6 {[%clk 0:02:57.3]} 5. Bd3 {[%clk 0:03:00.4]}
5... e5 {[%clk 0:02:55.9]} 6. Nb3 {[%clk 0:03:00.1]} 6... Nc6 {[%clk 0:02:53.7]}
7. c4 {[%clk 0:02:58.9]} 7... d6 {[%clk 0:02:48.6]} 8. O-O {[%clk 0:02:58]} 8...
Be7 {[%clk 0:02:47.1]} 9. Nc3 {[%clk 0:02:57.6]} 9... h6 {[%clk 0:02:43.9]} 10.
Nd5 {[%clk 0:02:56.7]} 10... O-O {[%clk 0:02:24.8]} 11. Qe2 {[%clk 0:02:48.5]}
11... Be6 {[%clk 0:02:23.6]} 12. Be3 {[%clk 0:02:40.5]} 12... Bxd5 {[%clk
0:02:03.6]} 13. cxd5 {[%clk 0:02:34.6]} 13... Nb8 {[%clk 0:02:03.1]} 14. f3
{[%clk 0:02:29.9]} 14... Nbd7 {[%clk 0:02:03]} 15. Rac1 {[%clk 0:02:29]} 15...
b6 {[%clk 0:01:56.2]} 16. Nd2 {[%clk 0:02:27.9]} 16... Nc5 {[%clk 0:01:55.2]}
17. b4 {[%clk 0:02:26.4]} 17... Nxd3 {[%clk 0:01:28.1]} 18. Qxd3 {[%clk
0:02:25.2]} 18... Nd7 {[%clk 0:01:16.2]} 19. Rc6 {[%clk 0:02:23.9]} 19... a5
{[%clk 0:01:15.4]} 20. a3 {[%clk 0:02:22.9]} 20... axb4 {[%clk 0:01:14.8]} 21.
axb4 {[%clk 0:02:22.3]} 21... Qb8 {[%clk 0:00:55.2]} 22. Qb5 {[%clk 0:02:19.6]}
22... Ra3 {[%clk 0:00:40.5]} 23. Bf2 {[%clk 0:02:18]} 23... Bg5 {[%clk
0:00:37.5]} 24. Nc4 {[%clk 0:02:17]} 24... Ra2 {[%clk 0:00:21.3]} 25. Nxd6
{[%clk 0:02:13.2]} 25... Qa8 {[%clk 0:00:16.2]} 26. Nf5 {[%clk 0:02:11.6]} 26...
Ra1 {[%clk 0:00:14.3]} 27. h4 {[%clk 0:02:05.2]} 27... Rxf1+ {[%clk 0:00:12.8]}
28. Qxf1 {[%clk 0:02:04.9]} 28... Bf4 {[%clk 0:00:07.7]} 29. g3 {[%clk
0:02:03.5]} 29... Bd2 {[%clk 0:00:08]} 30. Qc4 {[%clk 0:02:02.1]} 30... g6
{[%clk 0:00:06.4]} 31. Ne7+ {[%clk 0:01:51.5]} 31... Kg7 {[%clk 0:00:06.9]} 32.
d6 {[%clk 0:01:51.5]} 32... Qa1+ {[%clk 0:00:06.3]} 33. Kg2 {[%clk 0:01:50.8]}
33... Nf6 {[%clk 0:00:04.5]} 34. Nd5 {[%clk 0:01:46.8]} 34... Nxd5 {[%clk
0:00:04.1]} 35. Qxd5 {[%clk 0:01:46]} 35... Ra8 {[%clk 0:00:03.4]} 36. Rc2
{[%clk 0:01:42.7]} 36... Bxb4 {[%clk 0:00:02]} 37. d7 {[%clk 0:01:42.5]} 37...
Rd8 {[%clk 0:00:02]} 38. Bxb6 {[%clk 0:01:38.8]} 38... Be7 {[%clk 0:00:02]} 39.
Bxd8 {[%clk 0:01:38.2]} 39... Bxd8 {[%clk 0:00:02.9]} 40. Rd2 {[%clk 0:01:36.4]}
40... Qa4 {[%clk 0:00:02.2]} 41. Qd3 {[%clk 0:01:35.2]} 41... Qa5 {[%clk
0:00:02.1]} 42. f4 {[%clk 0:01:34.6]} 42... f6 {[%clk 0:00:01.2]} 43. fxe5
{[%clk 0:01:33.8]} 43... fxe5 {[%clk 0:00:02.1]} 44. Rf2 {[%clk 0:01:33.1]}
44... Qb6 {[%clk 0:00:02]} 45. Qd5 {[%clk 0:01:31.8]} 1-0

[Event "*** Titled Tuesday Blitz"]
[Site "Chess.com"]
[Date "2020.04.07"]
[Round "3"]
[White "DonBroca"]
[Black "The_Machine04"]
[Result "0-1"]
[WhiteElo "2072"]
[BlackElo "2384"]
[TimeControl "180+1"]
[EndTime "13:28:56 PDT"]
[Termination "The_Machine04 won on time"]

1. e4 {[%clk 0:03:00.9]} 1... d6 {[%clk 0:03:00.1]} 2. d4 {[%clk 0:03:01]} 2...
Nf6 {[%clk 0:03:00.7]} 3. Nc3 {[%clk 0:03:01.6]} 3... e5 {[%clk 0:03:01.2]} 4.
Nf3 {[%clk 0:03:00.8]} 4... Nbd7 {[%clk 0:03:01]} 5. g4 {[%clk 0:02:59.2]} 5...
d5 {[%clk 0:03:00.7]} 6. dxe5 {[%clk 0:02:32]} 6... Nxe4 {[%clk 0:02:59.7]} 7.
Qxd5 {[%clk 0:02:23.7]} 7... Nxc3 {[%clk 0:02:58.1]} 8. bxc3 {[%clk 0:02:24.6]}
8... c6 {[%clk 0:02:58.6]} 9. Qe4 {[%clk 0:02:11.3]} 9... Nc5 {[%clk 0:02:52.2]}
10. Qf4 {[%clk 0:01:55.7]} 10... Ne6 {[%clk 0:02:41.5]} 11. Qd2 {[%clk
0:01:52.1]} 11... Qa5 {[%clk 0:02:37.7]} 12. c4 {[%clk 0:01:48.7]} 12... Bb4
{[%clk 0:02:36.5]} 13. Be2 {[%clk 0:00:21.5]} 13... Bxd2+ {[%clk 0:02:31.2]} 14.
Bxd2 {[%clk 0:00:22.4]} 14... Qc7 {[%clk 0:02:29.6]} 15. h3 {[%clk 0:00:21.2]}
15... O-O {[%clk 0:02:24.8]} 16. Bc3 {[%clk 0:00:21.5]} 16... Nc5 {[%clk
0:02:20.7]} 17. Bb4 {[%clk 0:00:21.1]} 17... b6 {[%clk 0:02:20.1]} 18. a4 {[%clk
0:00:21]} 18... a5 {[%clk 0:02:19.8]} 19. Bc3 {[%clk 0:00:21]} 19... Be6 {[%clk
0:02:19.8]} 20. Kf1 {[%clk 0:00:19.2]} 20... Ne4 {[%clk 0:02:19.9]} 21. Bb2
{[%clk 0:00:17.2]} 21... Rad8 {[%clk 0:02:18.3]} 22. Bd3 {[%clk 0:00:17.6]}
22... Nc5 {[%clk 0:02:17]} 23. Ke2 {[%clk 0:00:17]} 23... Nxd3 {[%clk 0:02:15]}
24. cxd3 {[%clk 0:00:17.9]} 24... c5 {[%clk 0:02:15.1]} 25. Rhd1 {[%clk
0:00:17.5]} 25... Qc6 {[%clk 0:02:14.8]} 26. Rd2 {[%clk 0:00:16.9]} 26... Rd7
{[%clk 0:02:14.6]} 27. Ng5 {[%clk 0:00:16]} 27... h6 {[%clk 0:02:12.3]} 28. Ne4
{[%clk 0:00:16.3]} 28... Rfd8 {[%clk 0:02:08.6]} 29. f4 {[%clk 0:00:15.4]} 29...
Bxc4 {[%clk 0:02:02.4]} 30. Nd6 {[%clk 0:00:11.6]} 30... Qg2+ {[%clk 0:01:57.7]}
31. Kd1 {[%clk 0:00:11.8]} 31... Bb3+ {[%clk 0:01:56.2]} 32. Ke1 {[%clk
0:00:09.2]} 32... Qg3+ {[%clk 0:01:51.5]} 33. Ke2 {[%clk 0:00:08.9]} 33... Qxf4
{[%clk 0:01:51]} 34. Rf1 {[%clk 0:00:07.9]} 34... Qh2+ {[%clk 0:01:50.5]} 35.
Rf2 {[%clk 0:00:07.7]} 35... Qg3 {[%clk 0:01:44.9]} 36. Ne4 {[%clk 0:00:08]}
36... Qh4 {[%clk 0:01:38.9]} 37. g5 {[%clk 0:00:08.5]} 37... Qxe4+ {[%clk
0:01:31.2]} 38. dxe4 {[%clk 0:00:06.9]} 38... Rxd2+ {[%clk 0:01:31.3]} 39. Ke3
{[%clk 0:00:07.5]} 39... Rxf2 {[%clk 0:01:31.7]} 40. Kxf2 {[%clk 0:00:08.4]}
40... Rd2+ {[%clk 0:01:32]} 41. Kf3 {[%clk 0:00:09.3]} 41... Rxb2 {[%clk
0:01:32.6]} 42. gxh6 {[%clk 0:00:10.2]} 42... gxh6 {[%clk 0:01:32.7]} 43. e6
{[%clk 0:00:11.1]} 43... Bxe6 {[%clk 0:01:32.9]} 44. h4 {[%clk 0:00:12]} 44...
Rb4 {[%clk 0:01:33.2]} 45. h5 {[%clk 0:00:12.9]} 45... Rxa4 {[%clk 0:01:34]} 46.
e5 {[%clk 0:00:13]} 46... Rb4 {[%clk 0:01:34.9]} 47. Ke3 {[%clk 0:00:13]} 47...
a4 {[%clk 0:01:35.8]} 48. Kd3 {[%clk 0:00:13.9]} 48... a3 {[%clk 0:01:36.7]} 49.
Kc3 {[%clk 0:00:14.5]} 49... a2 {[%clk 0:01:37.6]} 50. Kc2 {[%clk 0:00:15]}
50... a1=Q {[%clk 0:01:38.5]} 51. Kd3 {[%clk 0:00:14.4]} 51... Qa3+ {[%clk
0:01:37.7]} 52. Kc2 {[%clk 0:00:14.8]} 52... Rb2+ {[%clk 0:01:38.6]} 0-1

[Event "*** Titled Tuesday Blitz"]
[Site "Chess.com"]
[Date "2020.04.07"]
[Round "3"]
[White "nfds"]
[Black "hansen"]
[Result "0-1"]
[WhiteElo "2586"]
[BlackElo "3026"]
[TimeControl "180+1"]
[EndTime "13:28:57 PDT"]
[Termination "hansen won by resignation"]

1. Nf3 {[%clk 0:03:00.9]} 1... Nf6 {[%clk 0:02:54]} 2. c4 {[%clk 0:02:57.3]}
2... e6 {[%clk 0:02:47.5]} 3. b3 {[%clk 0:02:53.3]} 3... d5 {[%clk 0:02:46.7]}
4. cxd5 {[%clk 0:02:50.9]} 4... exd5 {[%clk 0:02:45.6]} 5. Bb2 {[%clk
0:02:47.4]} 5... a5 {[%clk 0:02:35.8]} 6. a3 {[%clk 0:02:41.7]} 6... Bd6 {[%clk
0:02:26.9]} 7. e3 {[%clk 0:02:40.9]} 7... O-O {[%clk 0:02:26.3]} 8. Be2 {[%clk
0:02:39.3]} 8... Re8 {[%clk 0:02:26.5]} 9. O-O {[%clk 0:02:38.7]} 9... Nbd7
{[%clk 0:02:26.1]} 10. d3 {[%clk 0:02:32]} 10... Nf8 {[%clk 0:02:12.6]} 11. Nbd2
{[%clk 0:02:29.1]} 11... Ng6 {[%clk 0:02:09.8]} 12. Re1 {[%clk 0:02:27.5]} 12...
c6 {[%clk 0:02:09.5]} 13. Qc2 {[%clk 0:02:25.6]} 13... Qe7 {[%clk 0:02:08.9]}
14. Bf1 {[%clk 0:02:17.4]} 14... Bg4 {[%clk 0:02:05.5]} 15. g3 {[%clk
0:02:15.3]} 15... Rad8 {[%clk 0:02:03.5]} 16. Bg2 {[%clk 0:02:14.5]} 16... Nd7
{[%clk 0:01:59.6]} 17. Qc3 {[%clk 0:02:12.6]} 17... Qf6 {[%clk 0:01:56.9]} 18.
Qc2 {[%clk 0:02:06.4]} 18... Qf5 {[%clk 0:01:50.3]} 19. Qc3 {[%clk 0:01:57.5]}
19... f6 {[%clk 0:01:49.6]} 20. e4 {[%clk 0:01:45.8]} 20... dxe4 {[%clk
0:01:36.8]} 21. dxe4 {[%clk 0:01:46.7]} 21... Qh5 {[%clk 0:01:35.5]} 22. Nc4
{[%clk 0:01:26.3]} 22... Bc7 {[%clk 0:01:33.8]} 23. b4 {[%clk 0:00:59.5]} 23...
axb4 {[%clk 0:01:24.8]} 24. axb4 {[%clk 0:01:00.4]} 24... Kh8 {[%clk 0:01:17.3]}
25. Nd4 {[%clk 0:00:49.4]} 25... Nde5 {[%clk 0:01:15.6]} 26. f4 {[%clk
0:00:29.4]} 26... Nxc4 {[%clk 0:01:10]} 27. Qxc4 {[%clk 0:00:30.3]} 27... Nxf4
{[%clk 0:00:59]} 28. gxf4 {[%clk 0:00:31.2]} 28... Bxf4 {[%clk 0:00:59.2]} 29.
Ne2 {[%clk 0:00:20.1]} 29... Qxh2+ {[%clk 0:00:53.1]} 30. Kf1 {[%clk 0:00:15.3]}
30... Be3 {[%clk 0:00:43.8]} 31. Bd4 {[%clk 0:00:13.4]} 31... Bh3 {[%clk
0:00:42]} 0-1

[Event "*** Titled Tuesday Blitz"]
[Site "Chess.com"]
[Date "2020.04.07"]
[Round "3"]
[White "Evgeny81"]
[Black "wild_cat99"]
[Result "1-0"]
[WhiteElo "2753"]
[BlackElo "2519"]
[TimeControl "180+1"]
[EndTime "13:28:57 PDT"]
[Termination "Evgeny81 won by resignation"]

1. d4 {[%clk 0:03:00.9]} 1... Nf6 {[%clk 0:03:00.2]} 2. c4 {[%clk 0:03:00.9]}
2... g6 {[%clk 0:03:00.4]} 3. Nc3 {[%clk 0:03:00.5]} 3... d5 {[%clk 0:03:00.8]}
4. e3 {[%clk 0:02:58.5]} 4... Bg7 {[%clk 0:03:00.3]} 5. Qb3 {[%clk 0:02:58.8]}
5... dxc4 {[%clk 0:02:59.5]} 6. Bxc4 {[%clk 0:02:58.3]} 6... O-O {[%clk
0:02:59.9]} 7. Nf3 {[%clk 0:02:58.9]} 7... Nc6 {[%clk 0:02:59.8]} 8. Be2 {[%clk
0:02:57.3]} 8... Na5 {[%clk 0:02:57.9]} 9. Qc2 {[%clk 0:02:56.8]} 9... b6 {[%clk
0:02:57.9]} 10. O-O {[%clk 0:02:53.6]} 10... Bb7 {[%clk 0:02:58.1]} 11. b4
{[%clk 0:02:51.8]} 11... Nc6 {[%clk 0:02:57.9]} 12. a3 {[%clk 0:02:50.7]} 12...
e6 {[%clk 0:02:55]} 13. Bb2 {[%clk 0:02:50]} 13... Ne7 {[%clk 0:02:52.1]} 14.
Rac1 {[%clk 0:02:46.2]} 14... Rc8 {[%clk 0:02:44.9]} 15. Rfd1 {[%clk 0:02:45.3]}
15... Nfd5 {[%clk 0:02:24.6]} 16. Nxd5 {[%clk 0:02:41.9]} 16... Nxd5 {[%clk
0:02:25.5]} 17. Ne5 {[%clk 0:02:36]} 17... Qg5 {[%clk 0:02:13.1]} 18. Bf3 {[%clk
0:02:34.5]} 18... Bxe5 {[%clk 0:01:59.2]} 19. dxe5 {[%clk 0:02:33.4]} 19... Nxe3
{[%clk 0:01:58.1]} 20. h4 {[%clk 0:02:23.2]} 20... Nxc2 {[%clk 0:01:53.5]} 21.
hxg5 {[%clk 0:02:23.3]} 21... Bxf3 {[%clk 0:01:53.6]} 22. gxf3 {[%clk
0:02:23.9]} 22... Nxb4 {[%clk 0:01:42.6]} 23. axb4 {[%clk 0:02:23.7]} 23... c5
{[%clk 0:01:42.9]} 24. bxc5 {[%clk 0:02:23.1]} 24... Rxc5 {[%clk 0:01:43.7]} 25.
Rxc5 {[%clk 0:02:20.2]} 25... bxc5 {[%clk 0:01:44.6]} 26. Rd7 {[%clk 0:02:16.5]}
26... Re8 {[%clk 0:01:42.3]} 27. Rxa7 {[%clk 0:02:14.9]} 27... Rc8 {[%clk
0:01:41.3]} 28. Bc3 {[%clk 0:02:10.3]} 28... h6 {[%clk 0:01:38.2]} 29. gxh6
{[%clk 0:02:08.2]} 29... g5 {[%clk 0:01:38.5]} 30. Bd2 {[%clk 0:02:07.6]} 30...
c4 {[%clk 0:01:37]} 31. Bxg5 {[%clk 0:02:07.6]} 31... c3 {[%clk 0:01:37]} 32.
Kf1 {[%clk 0:02:05.1]} 32... c2 {[%clk 0:01:35.9]} 33. Ra1 {[%clk 0:02:05.1]}
33... Kh7 {[%clk 0:01:32.6]} 34. Rc1 {[%clk 0:02:04.2]} 34... Kg6 {[%clk
0:01:32.1]} 35. Be3 {[%clk 0:02:04.3]} 35... Kf5 {[%clk 0:01:30.8]} 36. Ke2
{[%clk 0:02:01.6]} 36... Kxe5 {[%clk 0:01:27]} 37. Kd3 {[%clk 0:02:01.8]} 37...
Kf5 {[%clk 0:01:26.6]} 38. Rxc2 {[%clk 0:02:00.8]} 38... Rd8+ {[%clk 0:01:26.8]}
39. Ke2 {[%clk 0:02:00.6]} 39... e5 {[%clk 0:01:26.9]} 40. Rc7 {[%clk
0:01:56.7]} 40... Kg6 {[%clk 0:01:22.7]} 41. Re7 {[%clk 0:01:55.8]} 41... Rd5
{[%clk 0:01:20.9]} 42. h7 {[%clk 0:01:53.9]} 42... Kxh7 {[%clk 0:01:19.7]} 43.
Rxf7+ {[%clk 0:01:54]} 43... Kg6 {[%clk 0:01:20.3]} 44. Ra7 {[%clk 0:01:52.8]}
44... Rb5 {[%clk 0:01:19]} 45. Ra4 {[%clk 0:01:48.4]} 45... Kf6 {[%clk
0:01:13.9]} 46. f4 {[%clk 0:01:48]} 46... exf4 {[%clk 0:01:13.3]} 47. Rxf4+
{[%clk 0:01:47.5]} 47... Ke5 {[%clk 0:01:10.6]} 48. Rh4 {[%clk 0:01:47.3]} 48...
Rb2+ {[%clk 0:01:10.5]} 49. Kf3 {[%clk 0:01:47.3]} 49... Kd5 {[%clk 0:01:07]}
50. Rh5+ {[%clk 0:01:46.8]} 50... Ke6 {[%clk 0:01:06.4]} 51. Ke4 {[%clk
0:01:44.8]} 51... Rb4+ {[%clk 0:01:05.8]} 52. Bd4 {[%clk 0:01:45.2]} 52... Rb1
{[%clk 0:01:03.1]} 53. Rh6+ {[%clk 0:01:44.8]} 53... Kf7 {[%clk 0:01:02.6]} 54.
f4 {[%clk 0:01:45]} 54... Re1+ {[%clk 0:01:02.2]} 55. Kf5 {[%clk 0:01:45.1]}
55... Rd1 {[%clk 0:01:01.4]} 56. Be5 {[%clk 0:01:45.1]} 56... Rd5 {[%clk
0:00:55.4]} 57. Rh7+ {[%clk 0:01:44.5]} 57... Kg8 {[%clk 0:00:55.5]} 58. Ra7
{[%clk 0:01:43.2]} 58... Rb5 {[%clk 0:00:51.2]} 59. Kg6 {[%clk 0:01:39.6]} 59...
Rb6+ {[%clk 0:00:51.1]} 60. Bf6 {[%clk 0:01:39.8]} 60... Rb8 {[%clk 0:00:50.1]}
61. Rh7 {[%clk 0:01:39.5]} 1-0

[Event "*** Titled Tuesday Blitz"]
[Site "Chess.com"]
[Date "2020.04.07"]
[Round "3"]
[White "canary2016"]
[Black "mmaks007"]
[Result "0-1"]
[WhiteElo "1828"]
[BlackElo "2320"]
[TimeControl "180+1"]
[EndTime "13:28:57 PDT"]
[Termination "mmaks007 won by resignation"]

1. Nf3 {[%clk 0:03:00.9]} 1... g6 {[%clk 0:02:58.2]} 2. g3 {[%clk 0:03:00.6]}
2... Bg7 {[%clk 0:02:57.6]} 3. Bg2 {[%clk 0:03:00.8]} 3... d6 {[%clk 0:02:57.6]}
4. O-O {[%clk 0:03:00.6]} 4... e5 {[%clk 0:02:57.9]} 5. d3 {[%clk 0:02:54]} 5...
f5 {[%clk 0:02:55.1]} 6. e4 {[%clk 0:02:49.4]} 6... Nf6 {[%clk 0:02:54.2]} 7.
Re1 {[%clk 0:02:48.2]} 7... O-O {[%clk 0:02:53.7]} 8. b3 {[%clk 0:02:45.4]} 8...
h6 {[%clk 0:02:51.9]} 9. Bb2 {[%clk 0:02:45.2]} 9... g5 {[%clk 0:02:46.4]} 10.
Nbd2 {[%clk 0:02:39]} 10... f4 {[%clk 0:02:45.6]} 11. c3 {[%clk 0:02:31.2]}
11... g4 {[%clk 0:02:44.9]} 12. Nh4 {[%clk 0:02:29.5]} 12... f3 {[%clk
0:02:44.5]} 13. Bf1 {[%clk 0:02:27.9]} 13... Kh7 {[%clk 0:02:44.5]} 14. d4
{[%clk 0:02:26.8]} 14... Qe7 {[%clk 0:02:39.8]} 15. Nc4 {[%clk 0:02:23.8]} 15...
Nc6 {[%clk 0:02:35.4]} 16. d5 {[%clk 0:02:20.4]} 16... Nd8 {[%clk 0:02:34.6]}
17. Ne3 {[%clk 0:02:20.1]} 17... Ng8 {[%clk 0:02:25.4]} 18. Nhf5 {[%clk
0:02:18.2]} 18... Qf7 {[%clk 0:02:25.2]} 19. Qd3 {[%clk 0:02:08.9]} 19... h5
{[%clk 0:02:22.2]} 20. c4 {[%clk 0:02:05]} 20... Nh6 {[%clk 0:02:21.1]} 21. Nxg7
{[%clk 0:01:58.4]} 21... Qxg7 {[%clk 0:02:19.5]} 22. b4 {[%clk 0:01:55.1]} 22...
h4 {[%clk 0:02:16.6]} 23. c5 {[%clk 0:01:46.7]} 23... hxg3 {[%clk 0:02:16]} 24.
hxg3 {[%clk 0:01:46.6]} 24... Rh8 {[%clk 0:02:07.6]} 25. cxd6 {[%clk 0:01:42.7]}
25... cxd6 {[%clk 0:02:06.9]} 26. Nf5 {[%clk 0:01:41.4]} 26... Nxf5 {[%clk
0:01:49.3]} 27. exf5 {[%clk 0:01:41.2]} 27... Kg8 {[%clk 0:01:48.9]} 28. Re4
{[%clk 0:01:13.1]} 28... Bxf5 {[%clk 0:01:42.3]} 29. Qe3 {[%clk 0:01:10.6]}
29... Qh7 {[%clk 0:01:23]} 30. Qg5+ {[%clk 0:00:44.1]} 30... Kf8 {[%clk
0:01:19.2]} 31. Qf6+ {[%clk 0:00:41.5]} 31... Nf7 {[%clk 0:01:19.2]} 32. Qh4
{[%clk 0:00:31.6]} 32... Qg7 {[%clk 0:01:09.4]} 33. Qxh8+ {[%clk 0:00:11.7]}
33... Qxh8 {[%clk 0:01:07.1]} 34. Re3 {[%clk 0:00:11.7]} 34... Qh5 {[%clk
0:01:03.2]} 35. Rc1 {[%clk 0:00:11.5]} 35... Kg7 {[%clk 0:01:02.1]} 36. Rc7
{[%clk 0:00:11.1]} 36... Rh8 {[%clk 0:01:02.4]} 37. Bg2 {[%clk 0:00:09.2]} 37...
fxg2 {[%clk 0:00:58.2]} 0-1

[Event "*** Titled Tuesday Blitz"]
[Site "Chess.com"]
[Date "2020.04.07"]
[Round "3"]
[White "Gabix_94"]
[Black "LastHeroJr"]
[Result "1-0"]
[WhiteElo "2888"]
[BlackElo "2553"]
[TimeControl "180+1"]
[EndTime "13:28:58 PDT"]
[Termination "Gabix_94 won by checkmate"]

1. d4 {[%clk 0:03:00.9]} 1... Nf6 {[%clk 0:02:59.5]} 2. c4 {[%clk 0:02:59.8]}
2... g6 {[%clk 0:02:59.8]} 3. Nc3 {[%clk 0:02:59.3]} 3... Bg7 {[%clk 0:03:00.1]}
4. e4 {[%clk 0:02:59.5]} 4... d6 {[%clk 0:03:00.4]} 5. f3 {[%clk 0:02:59.9]}
5... O-O {[%clk 0:03:00.5]} 6. Nge2 {[%clk 0:03:00.1]} 6... Nc6 {[%clk
0:03:00.6]} 7. Be3 {[%clk 0:02:59.4]} 7... a6 {[%clk 0:03:00.9]} 8. Qd2 {[%clk
0:02:59.1]} 8... Rb8 {[%clk 0:03:01.1]} 9. Rc1 {[%clk 0:02:47.1]} 9... Bd7
{[%clk 0:03:01]} 10. Nd1 {[%clk 0:02:45.8]} 10... e6 {[%clk 0:02:58]} 11. Nf2
{[%clk 0:02:45]} 11... Qe7 {[%clk 0:02:55.2]} 12. g3 {[%clk 0:02:39.2]} 12...
Rfd8 {[%clk 0:02:39.7]} 13. Bg2 {[%clk 0:02:37.6]} 13... Be8 {[%clk 0:02:31.8]}
14. O-O {[%clk 0:02:36.2]} 14... b5 {[%clk 0:02:14.1]} 15. cxb5 {[%clk 0:02:35]}
15... axb5 {[%clk 0:02:15]} 16. b4 {[%clk 0:02:26.5]} 16... Na7 {[%clk
0:02:05.9]} 17. Rc2 {[%clk 0:02:23.7]} 17... Nc8 {[%clk 0:02:02.4]} 18. Rfc1
{[%clk 0:02:23.3]} 18... Rb7 {[%clk 0:02:02.8]} 19. Nd3 {[%clk 0:02:09.5]} 19...
Nb6 {[%clk 0:02:02.5]} 20. Nb2 {[%clk 0:02:09.6]} 20... Ra8 {[%clk 0:02:01.7]}
21. Nc3 {[%clk 0:02:05.6]} 21... Ra3 {[%clk 0:01:49.4]} 22. Bf1 {[%clk
0:02:00.8]} 22... c6 {[%clk 0:01:40.3]} 23. Bf2 {[%clk 0:01:53.7]} 23... h5
{[%clk 0:01:31.9]} 24. h3 {[%clk 0:01:51]} 24... Nfd7 {[%clk 0:01:15.7]} 25. f4
{[%clk 0:01:35.8]} 25... Nb8 {[%clk 0:01:14.7]} 26. e5 {[%clk 0:01:30.2]} 26...
d5 {[%clk 0:00:59.6]} 27. Nd3 {[%clk 0:01:30.2]} 27... Nc4 {[%clk 0:00:56.5]}
28. Qe1 {[%clk 0:01:30.4]} 28... Nd7 {[%clk 0:00:41.4]} 29. g4 {[%clk
0:01:29.5]} 29... hxg4 {[%clk 0:00:22.6]} 30. hxg4 {[%clk 0:01:30.4]} 30... Qf8
{[%clk 0:00:20.5]} 31. Bh4 {[%clk 0:01:26.3]} 31... Rba7 {[%clk 0:00:20.2]} 32.
Rh2 {[%clk 0:01:24.5]} 32... Ncb6 {[%clk 0:00:15.3]} 33. Bg5 {[%clk 0:01:22.8]}
33... f6 {[%clk 0:00:15.3]} 34. exf6 {[%clk 0:01:20.7]} 34... Nxf6 {[%clk
0:00:15.7]} 35. Ne5 {[%clk 0:01:18.3]} 35... Nc4 {[%clk 0:00:12.2]} 36. Qh4
{[%clk 0:01:16.7]} 36... Rxc3 {[%clk 0:00:07.7]} 37. Rxc3 {[%clk 0:01:15.5]}
37... Qxb4 {[%clk 0:00:07.5]} 38. Bxf6 {[%clk 0:01:09.3]} 38... Qf8 {[%clk
0:00:03.3]} 39. Qh7# {[%clk 0:01:08.4]} 1-0

[Event "*** Titled Tuesday Blitz"]
[Site "Chess.com"]
[Date "2020.04.07"]
[Round "3"]
[White "mshuaau0"]
[Black "bestluluNA"]
[Result "1-0"]
[WhiteElo "2217"]
[BlackElo "2505"]
[TimeControl "180+1"]
[EndTime "13:29:02 PDT"]
[Termination "mshuaau0 won on time"]

1. e4 {[%clk 0:03:00.9]} 1... e5 {[%clk 0:02:59.9]} 2. Nf3 {[%clk 0:03:01.1]}
2... Nc6 {[%clk 0:03:00.2]} 3. Bc4 {[%clk 0:02:58.8]} 3... Bc5 {[%clk
0:02:59.2]} 4. d3 {[%clk 0:02:57]} 4... Nf6 {[%clk 0:02:55.3]} 5. O-O {[%clk
0:02:56.9]} 5... d6 {[%clk 0:02:53.6]} 6. h3 {[%clk 0:02:56.7]} 6... a6 {[%clk
0:02:52.7]} 7. a3 {[%clk 0:02:55.5]} 7... h6 {[%clk 0:02:46.6]} 8. Nc3 {[%clk
0:02:55.4]} 8... g5 {[%clk 0:02:31.2]} 9. Nd5 {[%clk 0:02:54.2]} 9... Rg8 {[%clk
0:02:25.7]} 10. Nh2 {[%clk 0:02:47.3]} 10... Be6 {[%clk 0:02:14.6]} 11. Be3
{[%clk 0:02:45.6]} 11... Bxd5 {[%clk 0:01:24.2]} 12. Bxd5 {[%clk 0:02:44.3]}
12... Nxd5 {[%clk 0:01:22.3]} 13. exd5 {[%clk 0:02:41.7]} 13... Ne7 {[%clk
0:01:22.8]} 14. Bxc5 {[%clk 0:02:40]} 14... dxc5 {[%clk 0:01:22.4]} 15. Ng4
{[%clk 0:02:38.8]} 15... Qd6 {[%clk 0:01:20]} 16. Qf3 {[%clk 0:02:35.1]} 16...
f5 {[%clk 0:01:18.1]} 17. Ne3 {[%clk 0:02:34.5]} 17... Qf6 {[%clk 0:01:04.6]}
18. Rfe1 {[%clk 0:02:29.7]} 18... O-O-O {[%clk 0:01:03.5]} 19. Ng4 {[%clk
0:02:18.2]} 19... Qd6 {[%clk 0:00:44.8]} 20. Nxe5 {[%clk 0:02:17.1]} 20... Qxd5
{[%clk 0:00:44.4]} 21. Qxd5 {[%clk 0:02:12.5]} 21... Rxd5 {[%clk 0:00:44.7]} 22.
Nf7 {[%clk 0:02:01.6]} 22... Kd7 {[%clk 0:00:36.5]} 23. Nxh6 {[%clk 0:01:41.3]}
23... Rf8 {[%clk 0:00:20.9]} 24. g4 {[%clk 0:01:37.1]} 24... f4 {[%clk
0:00:15.3]} 25. Re4 {[%clk 0:01:26.3]} 25... Rd6 {[%clk 0:00:09]} 26. Rae1
{[%clk 0:01:19.6]} 26... Nc6 {[%clk 0:00:08.8]} 27. Nf5 {[%clk 0:01:18.3]} 27...
Rxf5 {[%clk 0:00:07.2]} 28. gxf5 {[%clk 0:01:18.2]} 28... Nd4 {[%clk 0:00:08.1]}
29. Rxd4 {[%clk 0:01:18.1]} 29... cxd4 {[%clk 0:00:07.5]} 30. Re4 {[%clk
0:01:12.4]} 30... c5 {[%clk 0:00:06]} 31. h4 {[%clk 0:01:12.2]} 31... Rf6 {[%clk
0:00:04.8]} 32. hxg5 {[%clk 0:01:10.3]} 32... Rxf5 {[%clk 0:00:04.7]} 33. Kf1
{[%clk 0:01:10.1]} 33... f3 {[%clk 0:00:02.9]} 34. Rg4 {[%clk 0:01:10]} 34...
Ke6 {[%clk 0:00:02.9]} 35. g6 {[%clk 0:01:09.8]} 35... Rf8 {[%clk 0:00:02.2]}
36. g7 {[%clk 0:01:10]} 36... Rg8 {[%clk 0:00:03]} 37. Rg3 {[%clk 0:01:10.3]}
37... Rxg7 {[%clk 0:00:03.2]} 38. Rxg7 {[%clk 0:01:09.5]} 1-0